bitfinex/quotes_ETHUSD_20250725
["timestamp","ask_amount","ask_price","bid_price","bid_amount"]
[1753409220155,0.9243,3685.2,3684.9,55.969594]
[1753409220334,0.9243,3685.1,3684.9,55.969594]
[1753409220538,0.136,3685.3,3684.9,55.969594]
[1753409220539,0.9243,3685.0,3684.9,55.969594]
[1753409220740,0.55,3684.8,3684.2,55.969594]
[1753409220947,4.02361979,3684.3,3684.2,55.969594]
[1753409221170,4.94791979,3684.3,3684.2,55.969594]
[1753409221370,9.21591979,3684.3,3684.2,55.969594]
[1753409221684,2.71375967,3685.0,3684.2,55.969594]
[1753409221685,0.4697,3684.6,3684.2,61.38292848]
[1753409222002,0.4546,3684.7,3684.4,55.969594]
[1753409222145,0.7594,3684.8,3684.4,55.969594]
[1753409222341,0.7594,3684.8,3684.6,55.969594]
[1753409222590,4.403,3685.0,3684.6,55.969594]
[1753409222965,0.136,3685.0,3684.7,55.969594]
[1753409223147,0.7824,3685.1,3684.7,55.969594]
[1753409223348,1.7067,3685.1,3684.8,58.68337939]
[1753409223547,4.267,3685.2,3684.9,55.969594]
[1753409224184,4.403,3685.3,3685.0,55.969594]
[1753409224397,4.403,3685.3,3684.9,55.969594]
[1753409224687,4.8576,3685.3,3684.9,55.969594]
[1753409224919,5.3273,3685.3,3684.9,55.969594]
[1753409225179,0.136,3685.3,3684.9,58.68337058]
[1753409225380,4.403,3685.3,3685.0,55.969594]
[1753409225679,4.267,3685.3,3685.0,55.969594]
[1753409225883,0.4697,3685.2,3685.0,55.969594]
[1753409226068,0.9243,3685.2,3685.0,55.969594]
[1753409226272,0.4546,3685.2,3685.0,55.969594]
[1753409226469,0.4697,3685.2,3685.0,55.969594]
[1753409226652,0.9243,3685.1,3685.0,55.969594]
[1753409226856,4.7367,3685.3,3684.9,55.969594]
[1753409227167,0.9243,3685.2,3684.9,55.969594]
[1753409227348,0.9243,3685.1,3684.8,55.969594]
[1753409227685,0.4697,3685.0,3684.8,55.969594]
[1753409227981,4.267,3685.3,3685.0,55.969594]
[1753409228596,0.002,3685.4,3685.2,55.969594]
[1753409228748,0.002,3685.4,3685.1,55.969594]
[1753409229383,0.9243,3685.3,3685.0,55.969594]
[1753409229543,0.002,3685.4,3685.1,0.4863]
[1753409229752,0.002,3685.4,3685.2,55.969594]
[1753409230055,0.002,3685.4,3685.3,56.105594]
[1753409230265,0.002,3685.4,3685.3,56.591894]
[1753409230486,0.002,3685.4,3685.3,59.30537729]
[1753409230799,0.002,3685.4,3685.3,56.591894]
[1753409231296,0.002,3685.4,3685.3,59.29098576]
[1753409231803,0.9263,3685.4,3685.3,55.969594]
[1753409232108,0.9263,3685.4,3685.1,55.969594]
[1753409232603,0.4546,3685.3,3685.1,55.969594]
[1753409232764,0.002,3685.4,3685.1,55.969594]
[1753409232765,0.552,3685.4,3685.1,55.969594]
[1753409232967,0.9243,3685.2,3684.9,55.969594]
[1753409233285,0.9243,3685.1,3684.9,55.969594]
[1753409233481,0.9243,3685.0,3684.9,47.185292]
[1753409233687,0.4546,3685.0,3684.6,56.105594]
[1753409233992,0.9243,3684.9,3684.7,55.969594]
[1753409234289,1.7095,3684.8,3684.3,55.969594]
[1753409234465,0.7852,3684.8,3684.6,55.969594]
[1753409234667,0.9243,3684.7,3684.6,55.969594]
[1753409236077,0.4598,3684.9,3684.6,55.969594]
[1753409236956,0.55,3685.5,3684.6,55.969594]
[1753409236957,0.7852,3685.5,3684.8,55.969594]
[1753409237157,4.267,3685.4,3685.0,56.105594]
[1753409237497,0.8972,3685.3,3685.0,55.969594]
[1753409237691,0.8972,3685.2,3685.0,55.969594]
[1753409238730,0.4598,3685.1,3685.0,55.969594]
[1753409239056,4.94603056,3685.1,3685.0,55.969594]
[1753409239267,2.71392783,3684.7,3684.2,56.105594]
[1753409239469,0.55,3684.5,3684.3,55.969594]
[1753409239773,3.26421979,3684.3,3684.2,55.969594]
[1753409240000,4.29741979,3684.3,3684.2,55.969594]
[1753409240200,5.08261979,3684.3,3684.2,55.969594]
[1753409241702,4.04949346,3684.2,3684.1,0.001]
[1753409241899,12.23778362,3684.2,3684.1,0.001]
[1753409242100,9.21069346,3684.2,3684.1,55.970594]
[1753409242290,6.4964,3684.2,3684.1,55.970594]
[1753409242623,2.2324,3684.2,3684.1,55.970594]
[1753409242822,6.4964,3684.2,3684.1,55.970594]
[1753409242986,2.85028651,3684.3,3684.1,55.970594]
[1753409242987,0.136,3684.3,3684.1,55.970594]
[1753409243184,0.136,3684.3,3684.2,55.969594]
[1753409243421,4.95,3684.3,3684.2,55.969594]
[1753409243622,0.136,3684.3,3684.2,55.969594]
[1753409243830,4.264,3684.3,3684.2,56.454794]
[1753409244126,0.136,3684.6,3684.3,2.71420709]
[1753409244299,4.264,3684.5,3684.4,55.969594]
[1753409244624,0.002,3684.9,3684.6,2.7139816]
[1753409244822,4.266,3684.9,3684.8,55.969594]
[1753409245426,4.266,3684.9,3684.8,60.40875223]
[1753409247027,0.002,3684.9,3684.8,60.40875223]
[1753409247244,0.002,3684.9,3684.8,60.87615223]
[1753409247538,0.002,3684.9,3684.8,57.20970074]
[1753409250141,0.002,3684.9,3684.8,57.69490074]
[1753409250819,0.002,3684.9,3684.8,60.40875223]
[1753409251257,0.002,3684.9,3684.8,57.69490074]
[1753409251444,0.002,3684.9,3684.8,57.20970074]
[1753409252235,0.002,3684.9,3684.8,60.40875223]
[1753409253555,0.002,3684.9,3684.8,60.87615223]
[1753409254046,0.002,3684.9,3684.8,61.69215223]
[1753409255048,0.002,3684.9,3684.8,61.22475223]
[1753409255364,0.002,3684.9,3684.8,61.69215223]
[1753409255924,1e-08,3684.9,3684.8,64.69215223]
[1753409256760,1e-08,3685.7,3685.6,2.71326242]
[1753409256966,1e-08,3685.7,3685.6,67.31485047]
[1753409257148,1e-08,3685.7,3685.6,67.28771785]
[1753409257325,1e-08,3685.7,3685.6,68.24031785]
[1753409258422,0.002,3686.2,3685.6,68.24031785]
[1753409258627,0.002,3686.8,3685.6,68.24031785]
[1753409258628,0.002,3686.8,3686.5,2.7125441]
[1753409258941,0.002,3687.7,3687.6,2.71179086]
[1753409259141,0.002,3687.7,3687.6,66.74480276]
[1753409259442,0.002,3687.7,3687.6,67.67028486]
[1753409259642,0.4374,3689.2,3688.8,55.969594]
[1753409259953,0.4374,3689.7,3689.1,2.7106285]
[1753409260125,0.4374,3689.7,3689.2,55.969594]
[1753409260664,0.4374,3689.6,3689.2,55.969594]
[1753409261167,0.7718,3689.8,3689.2,55.969594]
[1753409261168,0.8972,3689.5,3689.2,55.969594]
[1753409261462,0.8972,3689.4,3689.2,55.969594]
[1753409261662,3.17035243,3689.3,3689.1,55.969594]
[1753409261959,0.8972,3689.2,3688.8,4.259]
[1753409262146,0.4374,3689.2,3688.8,55.969594]
[1753409262358,1.4472,3689.5,3688.8,55.969594]
[1753409262560,0.8972,3689.5,3688.9,55.969594]
[1753409262763,2.71060428,3689.3,3688.9,55.969594]
[1753409263075,3.6078346,3689.2,3688.7,55.969594]
[1753409263379,0.4374,3689.6,3689.0,55.969594]
[1753409263542,1.2316,3689.8,3689.2,55.969594]
[1753409264884,5.2444,3690.0,3689.2,55.969594]
[1753409265177,0.55,3689.8,3689.2,55.969594]
[1753409266075,0.55,3689.9,3689.3,55.969594]
[1753409266773,2.71035483,3689.6,3689.3,55.969594]
[1753409266960,0.9287,3689.6,3689.3,55.969594]
[1753409267165,0.9287,3689.5,3689.3,55.969594]
[1753409267373,0.4558,3689.5,3689.3,55.969594]
[1753409268093,0.1352,3689.7,3689.4,55.969594]
[1753409268378,4.3912,3689.9,3689.4,56.579094]
[1753409268676,4.3912,3689.9,3689.6,55.969594]
[1753409269077,0.9287,3689.8,3689.5,55.969594]
[1753409269370,0.4558,3689.7,3689.5,55.969594]
[1753409270161,0.9287,3689.6,3689.5,55.969594]
[1753409270575,0.9287,3689.6,3689.2,56.104794]
[1753409270775,0.55,3689.4,3689.1,55.969594]
[1753409270975,0.9287,3689.3,3689.1,55.969594]
[1753409271296,0.6852,3689.4,3689.0,55.969594]
[1753409271297,0.1352,3689.4,3689.0,55.969594]
[1753409271577,4.255,3689.7,3689.2,55.969594]
[1753409271751,4.255,3689.7,3689.3,55.969594]
[1753409271959,4.255,3689.7,3689.4,55.969594]
[1753409272153,0.4558,3689.7,3689.5,55.969594]
[1753409272473,0.1352,3689.7,3689.3,55.969594]
[1753409272659,0.1352,3689.7,3689.4,55.969594]
[1753409272980,0.9287,3689.6,3689.3,55.969594]
[1753409273279,0.55,3689.4,3689.3,55.969594]
[1753409273452,1.4787,3689.4,3689.0,55.969594]
[1753409273660,0.4558,3689.3,3689.0,55.969594]
[1753409273873,3.26068824,3689.1,3689.0,55.969594]
[1753409274065,3.26068824,3689.1,3687.9,2.71150181]
[1753409274066,0.55,3689.1,3688.7,55.969594]
[1753409274266,0.55,3688.8,3688.7,11.089262]
[1753409274454,1.141,3688.8,3688.4,55.969594]
[1753409274780,1.141,3688.8,3688.5,55.969594]
[1753409276187,4.254,3688.9,3688.6,55.969594]
[1753409276484,0.6852,3689.2,3688.7,55.969594]
[1753409276670,0.004,3692.4,3688.7,55.969594]
[1753409276671,3.7674,3689.8,3688.9,55.969594]
[1753409276851,0.1352,3689.4,3689.0,58.68033952]
[1753409277052,0.1352,3689.4,3689.1,55.969594]
[1753409277248,0.1352,3689.5,3689.2,55.969594]
[1753409277493,4.254,3689.4,3689.2,55.969594]
[1753409278610,4.253,3689.4,3689.3,55.969594]
[1753409281987,0.9287,3689.4,3689.0,0.1352]
[1753409282187,4.253,3689.3,3689.1,55.969594]
[1753409282573,2.7108819,3688.9,3688.5,0.1352]
[1753409282772,0.1352,3689.1,3688.5,22.973976]
[1753409283019,3.26098218,3688.7,3688.6,55.969594]
[1753409283323,3.26098218,3688.7,3688.1,55.969594]
[1753409283324,3.52041206,3688.4,3688.1,55.969594]
[1753409283617,2.7113497,3688.2,3688.1,55.969594]
[1753409283779,2.7113497,3688.2,3687.3,55.969594]
[1753409283780,0.55,3687.9,3687.3,55.969594]
[1753409283975,2.7117974,3687.6,3687.2,55.969594]
[1753409284225,0.4558,3687.5,3687.4,55.969594]
[1753409286624,0.6852,3687.7,3687.4,55.969594]
[1753409286805,0.1352,3687.7,3687.4,55.969594]
[1753409287009,0.7674,3688.0,3687.5,56.443894]
[1753409287010,0.1352,3687.8,3687.5,56.443894]
[1753409287210,4.253,3687.7,3687.6,2.83429176]
[1753409287386,4.252,3687.9,3687.7,58.68130523]
[1753409287582,4.252,3687.9,3687.8,59.29071797]
[1753409287799,0.1352,3688.3,3687.9,55.969594]
[1753409288122,0.1352,3688.3,3688.0,55.969594]
[1753409288422,4.252,3688.2,3688.1,55.969594]
[1753409288876,7.052,3688.8,3688.1,55.969594]
[1753409289075,4.252,3688.7,3688.2,55.969594]
[1753409289323,4.252,3688.7,3688.4,55.969594]
[1753409289482,0.1352,3688.8,3688.4,61.37988626]
[1753409289685,4.252,3688.7,3688.5,56.443894]
[1753409289890,0.591,3689.8,3689.3,56.104794]
[1753409290121,4.252,3689.7,3689.4,55.969594]
[1753409290985,4.252,3689.7,3689.5,2.71039436]
[1753409291186,0.1372,3689.9,3689.5,59.14146451]
[1753409291384,0.002,3689.9,3689.8,58.67976799]
[1753409291791,0.002,3689.9,3689.8,59.15406799]
[1753409292225,0.002,3689.9,3689.8,63.39396799]
[1753409292226,1e-08,3689.9,3689.8,63.39396799]
[1753409293495,1e-08,3689.9,3689.8,60.217994]
[1753409293843,1e-08,3689.9,3689.8,66.87925975]
[1753409294004,1e-08,3689.9,3689.8,65.63085975]
[1753409294207,1e-08,3689.9,3689.8,60.221594]
[1753409294434,1e-08,3689.9,3689.8,55.969594]
[1753409294637,0.92870001,3689.9,3689.5,55.969594]
[1753409294933,0.92870001,3689.9,3688.8,0.7688]
[1753409294934,0.55,3689.7,3689.1,55.969594]
[1753409295240,5.3149,3689.6,3689.1,55.969594]
[1753409295454,0.9449,3689.5,3689.1,55.969594]
[1753409295600,0.55,3689.4,3689.1,55.969594]
[1753409295919,0.55,3689.4,3688.5,6.96210101]
[1753409295920,0.9588,3689.2,3688.6,56.104794]
[1753409296234,0.9588,3689.2,3688.8,55.969594]
[1753409296396,4.25,3689.1,3688.8,55.969594]
[1753409296899,0.4714,3689.0,3688.9,55.969594]
[1753409297528,3.20925188,3689.0,3688.9,55.969594]
[1753409297705,2.71084209,3688.9,3688.4,0.1352]
[1753409297904,0.02709016,3688.8,3688.5,55.969594]
[1753409298221,0.4714,3688.7,3688.5,55.969594]
[1753409298567,7.43245568,3688.6,3688.5,55.969594]
[1753409298904,4.8566,3688.6,3688.2,55.969594]
[1753409299236,1.4949,3688.5,3688.2,55.969594]
[1753409299414,2.71128453,3688.3,3687.5,55.969594]
[1753409299614,0.02709016,3688.2,3687.8,55.969594]
[1753409299939,5.1949,3688.1,3687.8,55.969594]
[1753409300153,0.4714,3688.0,3687.8,55.969594]
[1753409300313,0.9449,3688.0,3687.8,55.969594]
[1753409300517,1.04849016,3687.9,3687.2,55.969594]
[1753409300755,0.1352,3687.8,3687.4,55.969594]
[1753409301160,0.6087,3687.8,3687.4,55.969594]
[1753409301366,0.49849016,3687.7,3687.4,55.969594]
[1753409301686,4.25,3687.6,3687.4,55.969594]
[1753409302169,0.1352,3687.8,3687.4,55.969594]
[1753409302372,0.55,3688.3,3687.6,58.68138486]
[1753409302524,4.3852,3688.2,3687.8,55.969594]
[1753409302924,0.1352,3688.2,3687.9,55.969594]
[1753409303143,2.71149674,3688.0,3687.8,55.969594]
[1753409303325,0.4714,3687.9,3687.8,55.969594]
[1753409303535,1.0214,3687.9,3687.8,55.969594]
[1753409303751,1.6301,3687.9,3687.3,56.105594]
[1753409303989,1.6301,3687.9,3687.5,55.969594]
[1753409304122,4.25,3687.8,3687.5,55.969594]
[1753409304317,0.1352,3687.9,3687.6,55.969594]
[1753409304523,4.25,3688.0,3687.8,55.969594]
[1753409305818,4.25,3687.9,3687.8,55.969594]
[1753409306631,0.1352,3688.2,3687.9,55.969594]
[1753409306833,4.25,3688.1,3687.9,55.969594]
[1753409307298,0.55,3688.3,3687.9,55.969594]
[1753409307299,4.25,3688.0,3687.9,55.969594]
[1753409308168,4.25,3688.0,3687.9,11.856005]
[1753409308463,4.25,3688.0,3687.8,55.969594]
[1753409308778,4.7214,3688.0,3687.8,55.969594]
[1753409308960,0.6852,3688.3,3687.9,55.969594]
[1753409309164,4.25,3688.2,3687.8,55.969594]
[1753409309371,0.9449,3688.1,3687.8,55.969594]
[1753409309566,0.9449,3688.0,3687.8,55.969594]
[1753409309760,0.4735,3688.0,3687.8,55.969594]
[1753409309946,0.4714,3687.9,3687.8,55.969594]
[1753409310541,4.7214,3688.2,3687.8,55.969594]
[1753409310743,4.20637266,3688.1,3687.8,55.969594]
[1753409310971,0.55,3687.9,3687.6,55.969594]
[1753409311171,5.3291,3687.8,3687.4,55.969594]
[1753409311377,7.56938989,3687.8,3687.4,55.969594]
[1753409311584,0.49849016,3687.7,3687.4,55.969594]
[1753409311784,0.7966,3687.5,3687.4,55.969594]
[1753409312080,1.8767,3687.5,3687.1,55.969594]
[1753409312286,4.27609016,3687.4,3687.1,55.969594]
[1753409312671,4.27609016,3687.4,3687.1,56.55459996]
[1753409312871,4.249,3687.4,3687.2,55.969594]
[1753409313059,1.3466,3687.9,3687.3,55.969594]
[1753409313267,4.3842,3687.8,3687.4,2.71193795]
[1753409313595,4.3842,3687.8,3687.6,55.969594]
[1753409313753,0.1352,3687.8,3687.7,2.71171733]
[1753409313961,4.249,3687.8,3687.7,59.31201133]
[1753409314158,4.249,3687.8,3687.7,56.600294]
[1753409314562,4.249,3687.8,3687.7,56.104794]
[1753409315317,0.1352,3688.3,3687.8,55.969594]
[1753409315499,0.55,3688.5,3688.1,55.969594]
[1753409315684,4.249,3688.8,3688.4,41.358034]
[1753409315888,4.249,3688.8,3688.5,0.4955]
[1753409316201,4.249,3688.8,3688.6,55.969594]
[1753409316368,0.8088,3688.4,3687.9,0.1352]
[1753409316569,5.77099016,3688.3,3687.8,55.969594]
[1753409316904,0.55,3688.1,3687.8,55.969594]
[1753409317063,1.10719016,3688.0,3687.6,55.969594]
[1753409317263,4.249,3687.9,3687.6,55.969594]
[1753409317567,4.249,3687.9,3687.7,55.969594]
[1753409317969,4.249,3687.8,3687.7,58.68128655]
[1753409318169,4.248,3688.0,3687.9,55.969594]
[1753409318388,4.248,3688.0,3687.8,56.104794]
[1753409318594,4.248,3688.2,3688.0,55.969594]
[1753409318797,4.248,3688.2,3688.1,0.4955]
[1753409319000,0.1352,3688.5,3688.2,55.969594]
[1753409319216,4.248,3688.4,3688.2,55.969594]
[1753409319377,4.248,3688.4,3688.1,55.969594]
[1753409319711,4.7194,3688.4,3688.1,55.969594]
[1753409319917,4.248,3688.4,3688.1,55.969594]
[1753409320074,3.2613497,3688.2,3688.1,55.969594]
[1753409320274,1.6301,3688.2,3687.7,56.104794]
[1753409320478,4.248,3688.1,3687.9,55.969594]
[1753409320825,4.7194,3688.1,3687.9,55.969594]
[1753409320979,2.71157027,3687.9,3687.5,0.1352]
[1753409321180,2.71157027,3687.9,3687.6,55.969594]
[1753409321411,3.18297027,3687.9,3687.6,55.969594]
[1753409321887,1.4949,3687.8,3687.6,55.969594]
[1753409322120,2.71186457,3687.5,3687.1,55.969594]
[1753409322383,3.31846457,3687.5,3687.2,55.969594]
[1753409322581,2.84706457,3687.5,3687.2,55.969594]
[1753409322783,3.31846457,3687.5,3687.1,55.969594]
[1753409323038,0.6066,3687.5,3687.1,55.969594]
[1753409324218,0.1352,3687.5,3687.1,55.969594]
[1753409324881,2.71195746,3687.4,3687.1,55.969594]
[1753409325084,4.248,3687.3,3687.1,55.969594]
[1753409326084,0.1352,3687.5,3687.1,55.969594]
[1753409326322,0.7868,3688.3,3687.5,2.7118644]
[1753409326518,4.248,3688.2,3687.5,55.969594]
[1753409326720,4.248,3688.2,3687.8,55.969594]
[1753409326922,4.248,3688.2,3687.9,55.969594]
[1753409327281,4.248,3688.2,3687.9,58.68115358]
[1753409327486,0.55,3688.5,3688.0,55.969594]
[1753409327730,0.434,3688.6,3688.1,55.969594]
[1753409328051,4.248,3688.5,3688.2,55.969594]
[1753409328337,4.7008,3688.5,3688.0,55.969594]
[1753409328515,0.55,3688.6,3688.1,55.969594]
[1753409328821,4.247,3688.4,3688.2,55.969594]
[1753409329024,0.55,3688.6,3688.2,55.969594]
[1753409329222,4.247,3688.5,3688.3,55.969594]
[1753409331435,4.681,3688.5,3687.9,55.969594]
[1753409332023,0.55,3688.6,3688.1,44.283387]
[1753409332213,4.247,3688.4,3688.1,55.969594]
[1753409332414,4.247,3688.4,3688.3,55.969594]
[1753409333200,3.4528,3688.9,3688.3,55.969594]
[1753409333201,2.71062438,3689.2,3688.5,55.969594]
[1753409333428,4.247,3689.2,3688.6,55.969594]
[1753409333609,4.247,3689.2,3688.6,2.71104914]
[1753409333817,4.247,3689.2,3688.8,55.969594]
[1753409334022,4.247,3689.2,3689.0,4.161995]
[1753409334226,4.247,3689.2,3688.9,58.68041311]
[1753409334425,4.247,3689.2,3689.0,55.969594]
[1753409334804,4.247,3689.2,3689.1,55.969594]
[1753409335000,4.247,3689.2,3689.0,2.71074486]
[1753409335001,4.247,3689.2,3689.0,55.969594]
[1753409335302,0.55,3689.1,3688.6,55.969594]
[1753409335506,0.55,3689.1,3688.7,0.4614]
[1753409335820,0.55,3689.1,3688.9,55.969594]
[1753409336409,0.6852,3689.1,3688.9,55.969594]
[1753409338538,2.71076172,3689.0,3688.9,55.969594]
[1753409338843,2.71076172,3689.0,3688.7,55.969594]
[1753409339029,3.26090869,3688.8,3688.7,55.969594]
[1753409339232,2.71107572,3688.6,3688.1,56.104794]
[1753409339402,7.39014185,3688.5,3688.2,55.969594]
[1753409339602,7.39014185,3688.5,3687.8,55.969594]
[1753409339603,0.55,3688.3,3687.8,55.969594]
[1753409339835,0.8241,3688.1,3687.6,55.969594]
[1753409340140,4.245,3688.2,3687.8,55.969594]
[1753409340308,6.9563923,3688.2,3687.9,55.969594]
[1753409340634,4.245,3688.2,3687.8,55.969594]
[1753409341036,1.4368,3688.1,3687.8,55.969594]
[1753409341247,0.1352,3687.9,3687.5,55.969594]
[1753409341453,4.245,3687.8,3687.7,58.68131133]
[1753409341746,4.245,3687.9,3687.8,55.969594]
[1753409342238,8.39337027,3687.9,3687.8,55.969594]
[1753409342561,4.245,3687.9,3687.5,0.1352]
[1753409342756,4.245,3687.9,3687.6,55.969594]
[1753409342924,4.245,3687.9,3687.7,55.969594]
[1753409343259,4.245,3687.9,3687.8,57.34345354]
[1753409343556,4.245,3687.9,3687.7,55.969594]
[1753409344426,4.245,3687.9,3687.8,55.969594]
[1753409344927,4.245,3687.9,3687.6,55.969594]
[1753409345133,0.434,3687.8,3687.6,55.969594]
[1753409345343,0.434,3687.8,3687.5,55.969594]
[1753409345552,4.3802,3687.9,3687.7,55.969594]
[1753409345755,4.3802,3687.9,3687.5,55.969594]
[1753409346064,4.245,3687.9,3687.7,55.969594]
[1753409346623,4.245,3687.9,3687.5,55.969594]
[1753409346866,4.245,3687.9,3687.5,56.430994]
[1753409347072,4.245,3687.8,3687.7,55.969594]
[1753409347540,4.245,3687.8,3687.7,56.430994]
[1753409348764,4.245,3687.8,3687.7,55.969594]
[1753409350763,4.245,3687.8,3687.7,56.430994]
[1753409351677,4.245,3687.8,3687.7,55.969594]
[1753409352278,3.26171733,3687.7,3687.2,55.969594]
[1753409352426,0.1352,3687.5,3687.2,55.969594]
[1753409352627,4.8142,3687.5,3687.2,55.969594]
[1753409352822,0.1352,3687.5,3687.4,44.914234]
[1753409353048,4.245,3687.7,3687.4,56.104794]
[1753409353337,4.245,3687.7,3687.6,55.969594]
[1753409354420,0.1352,3688.0,3687.6,55.969594]
[1753409354421,0.1352,3688.0,3687.7,55.969594]
[1753409354671,0.7806,3688.6,3687.9,2.71157027]
[1753409354876,0.7806,3688.9,3688.1,40.762835]
[1753409355031,0.1352,3689.0,3688.6,55.969594]
[1753409355233,0.1352,3689.1,3688.8,55.969594]
[1753409355462,0.8075,3689.2,3689.0,55.969594]
[1753409355955,4.245,3689.1,3689.0,55.969594]
[1753409356264,6.95568824,3689.1,3689.0,55.969594]
[1753409356439,4.245,3689.1,3688.5,2.71106263]
[1753409356620,4.3802,3689.1,3688.7,55.969594]
[1753409356957,0.1352,3689.1,3688.7,56.436294]
[1753409357170,0.1352,3689.1,3688.6,2.247613]
[1753409357171,0.1352,3689.1,3688.9,56.748794]
[1753409357352,0.8318037,3690.0,3689.0,55.969594]
[1753409357353,4.244,3689.6,3689.0,55.969594]
[1753409357567,4.3792,3689.6,3689.2,55.969594]
[1753409357927,4.3792,3689.6,3689.3,0.4667]
[1753409358230,4.3792,3689.6,3689.4,55.969594]
[1753409358426,4.244,3689.6,3689.4,55.969594]
[1753409358629,4.244,3689.6,3689.5,55.969594]
[1753409359167,3.26054129,3689.3,3689.2,55.969594]
[1753409359369,3.26054129,3689.3,3687.8,2.7115928]
[1753409359370,2.71090869,3688.8,3687.8,0.6019]
[1753409359600,5.32239016,3688.7,3687.9,55.969594]
[1753409359906,0.1352,3688.5,3688.1,55.969594]
[1753409360067,4.3792,3688.6,3688.1,0.6019]
[1753409360268,4.3792,3688.6,3688.3,55.969594]
[1753409360468,7.09026735,3688.6,3688.3,55.969594]
[1753409360683,1.4661,3688.5,3687.9,55.969594]
[1753409360904,1.4661,3688.5,3688.0,55.969594]
[1753409361303,0.1352,3688.3,3687.8,56.104794]
[1753409361470,4.243,3688.2,3688.0,55.969594]
[1753409361806,4.243,3688.5,3688.2,55.969594]
[1753409361976,4.243,3688.5,3688.3,0.4667]
[1753409362179,4.243,3688.5,3688.3,56.104794]
[1753409362380,0.55,3688.4,3687.8,55.969594]
[1753409362577,0.6852,3688.4,3688.0,55.969594]
[1753409362794,0.55,3688.3,3688.0,55.969594]
[1753409363007,3.39662322,3688.1,3687.6,55.969594]
[1753409363232,4.243,3688.0,3687.6,55.969594]
[1753409363920,4.243,3688.0,3687.8,55.969594]
[1753409364216,1.2124,3688.6,3687.8,55.969594]
[1753409364217,4.243,3688.1,3688.0,55.969594]
[1753409364716,4.243,3688.1,3688.0,56.436294]
[1753409365520,4.243,3688.1,3688.0,55.969594]
[1753409367116,0.1352,3688.4,3688.0,55.969594]
[1753409367315,2.71083443,3689.0,3688.0,55.969594]
[1753409367316,4.243,3688.3,3688.2,55.969594]
[1753409367515,0.1352,3688.6,3688.2,55.969594]
[1753409367716,0.7872,3689.4,3688.4,55.969594]
[1753409367930,0.7872,3689.4,3688.7,55.969594]
[1753409367931,4.243,3689.3,3688.7,55.969594]
[1753409368118,0.1352,3689.2,3688.8,55.969594]
[1753409368497,0.1352,3689.2,3688.9,56.436294]
[1753409368800,4.243,3689.2,3689.1,58.68023627]
[1753409368983,4.243,3689.4,3689.2,58.6802062]
[1753409369182,1e-08,3689.9,3689.4,55.969594]
[1753409369422,4.243,3689.8,3689.5,22.149702]
[1753409369623,4.243,3689.8,3689.5,56.104794]
[1753409369812,4.243,3689.8,3689.7,55.969594]
[1753409370394,4.243,3689.8,3689.6,55.969594]
[1753409370915,3.52714744,3689.7,3689.6,55.969594]
[1753409371111,3.52714744,3689.7,3688.7,56.104794]
[1753409371112,2.7103209,3689.6,3688.7,56.104794]
[1753409371431,1.4661,3689.5,3688.8,55.969594]
[1753409371645,4.243,3689.4,3688.9,0.4667]
[1753409371828,4.243,3689.4,3689.1,55.969594]
[1753409372025,4.243,3689.4,3689.2,0.4667]
[1753409372240,4.242,3689.5,3689.4,55.969594]
[1753409372465,4.242,3689.5,3689.4,59.60808576]
[1753409372740,1e-08,3689.9,3689.4,59.60808576]
[1753409372903,4.242,3689.8,3689.6,32.412732]
[1753409373100,4.242,3689.8,3689.6,55.969594]
[1753409373305,1e-08,3689.9,3689.8,55.969594]
[1753409373501,1e-08,3689.9,3689.8,58.66868576]
[1753409373769,1e-08,3689.9,3689.8,62.31825975]
[1753409373967,1e-08,3689.9,3689.8,63.08485975]
[1753409374441,1e-08,3689.9,3689.8,67.32685975]
[1753409374608,1e-08,3689.9,3689.8,59.90198576]
[1753409374809,1e-08,3689.9,3689.8,55.969594]
[1753409375329,1e-08,3689.9,3689.8,56.436294]
[1753409376141,1e-08,3689.9,3689.8,59.61916799]
[1753409376706,1e-08,3689.9,3689.8,60.41056799]
[1753409378168,1e-08,3689.9,3689.8,63.41056799]
[1753409378315,1e-08,3689.9,3689.8,66.10965975]
[1753409378750,1e-08,3690.9,3690.8,61.67903368]
[1753409378955,0.004,3693.8,3692.1,0.112]
[1753409379157,0.004,3693.8,3692.9,58.78949294]
[1753409379388,0.004,3693.8,3692.9,63.457794]
[1753409379543,0.004,3693.8,3692.9,69.80418467]
[1753409380146,0.004,3693.8,3692.9,70.25886724]
[1753409380388,0.004,3693.8,3693.7,59.47980645]
[1753409380682,0.004,3693.8,3693.7,64.0412896]
[1753409380890,0.004,3693.8,3693.7,58.03337715]
[1753409381042,0.004,3693.8,3693.7,63.51058576]
[1753409381891,0.004,3693.8,3693.7,66.69059821]
[1753409382098,0.004,3693.8,3693.7,63.51058576]
[1753409382445,0.004,3693.8,3693.7,58.80388576]
[1753409382647,4.17733915,3693.8,3693.7,55.969594]
[1753409382882,0.1392,3693.8,3693.3,0.1352]
[1753409383055,0.1392,3693.8,3693.4,55.969594]
[1753409383255,0.1412,3693.8,3693.5,55.969594]
[1753409383577,0.1412,3693.8,3693.4,56.436294]
[1753409383782,0.1412,3693.8,3693.5,55.969594]
[1753409383953,3.62341728,3693.7,3693.4,55.969594]
[1753409384157,2.70745904,3693.5,3693.0,55.969594]